{"text_format":"1","workbook":"xlsx","n_sheets":2,"sheets":["Datos","Dashboard"],"not_rendered":{"charts":0,"images":0,"macros":1,"external_links":0,"defined_names":3,"comments":0,"pivot_tables":2},"unopened":[],"bounds":{"document_bytes":16777216,"sheet_cells":100000,"rows_first":2000,"rows_last":500,"rows_between":2000,"halvings":0,"cell_chars":16384,"cell_head_chars":4096},"cells_cut":0,"cells_raw":0,"read":"whole","date_system":"1900"}

{"sheet":"Datos","index":0,"n_rows":18,"n_cols":15,"rows_kept":18,"cut":false,"hidden":false,"merged":[[1,4,2,11],[4,1,4,4],[4,9,4,14],[4,6,4,7]]}
[]
[]
[]
[]
[null,"PROYECTOS",null,null,null,null,"EQUIPO",null,null,"TAREAS"]
[null,"Proyectos","Fecha inicio","Fecha final","Estado",null,"Equipo","Área",null,"Tarea","Proyecto","Responsable","Fecha inicio","Fecha final","Estado"]
[null,"Proyecto 1","2022-05-20","2022-08-20","Terminado",null,"Persona 1","Área 1",null,"Tarea 1","Proyecto 1","Persona 1",{"$f":"TODAY()-15","v":"2022-08-23"},{"$f":"TODAY()","v":"2022-09-07"},"Terminado"]
[null,"Proyecto 2","2022-07-01","2023-01-05","En Proceso",null,"Persona 2","Área 2",null,"Tarea 2","Proyecto 2","Persona 2",{"$f":"TODAY()-14","v":"2022-08-24"},{"$f":"TODAY()+1","v":"2022-09-08"},"Terminado"]
[null,"Proyecto 3","2022-07-01","2023-01-15","En Proceso",null,"Persona 3","Área 3",null,"Tarea 3","Proyecto 2","Persona 1",{"$f":"TODAY()-13","v":"2022-08-25"},{"$f":"TODAY()+4","v":"2022-09-11"},"En Proceso"]
[null,"Proyecto 4","2023-01-20","2023-04-20","En Proceso",null,"Persona 4","Área 4",null,"Tarea 4","Proyecto 2","Persona 2",{"$f":"TODAY()+1","v":"2022-09-08"},{"$f":"TODAY()+5","v":"2022-09-12"},"En Espera"]
[null,"Proyecto 5","2023-02-10","2023-05-20","En Espera",null,null,null,null,"Tarea 5","Proyecto 4","Persona 3",{"$f":"TODAY()-11","v":"2022-08-27"},{"$f":"TODAY()+4","v":"2022-09-11"},"En Espera"]
[null,"Proyecto 6","2023-02-10","2023-05-20","En Espera",null,null,null,null,"Tarea 6","Proyecto 3","Persona 3",{"$f":"TODAY()-10","v":"2022-08-28"},{"$f":"TODAY()+7","v":"2022-09-14"},"En Espera"]
[null,null,null,null,null,null,null,null,null,"Tarea 7","Proyecto 3","Persona 3",{"$f":"TODAY()+4","v":"2022-09-11"},{"$f":"TODAY()+15","v":"2022-09-22"},"En Espera"]
[null,null,null,null,null,null,null,null,null,"Tarea 8","Proyecto 4","Persona 1",{"$f":"TODAY()-5","v":"2022-09-02"},{"$f":"TODAY()+10","v":"2022-09-17"},"En Espera"]
[null,null,null,null,null,null,null,null,null,"Tarea 9","Proyecto 5","Persona 1",{"$f":"TODAY()-2","v":"2022-09-05"},{"$f":"TODAY()+14","v":"2022-09-21"},"En Espera"]
[null,null,null,null,null,null,null,null,null,"Tarea 10","Proyecto 6","Persona 1",{"$f":"TODAY()-2","v":"2022-09-05"},{"$f":"TODAY()+2","v":"2022-09-09"},"En Espera"]
[null,null,null,null,null,null,null,null,null,"Tarea 11","Proyecto 6","Persona 4",{"$f":"TODAY()-2","v":"2022-09-05"},{"$f":"TODAY()+2","v":"2022-09-09"},"Terminado"]
[null,null,null,null,null,null,null,null,null,"Tarea 12","Proyecto 4","Persona 2",{"$f":"TODAY()-2","v":"2022-09-05"},{"$f":"TODAY()+2","v":"2022-09-09"},"En Espera"]

{"sheet":"Dashboard","index":1,"n_rows":63,"n_cols":54,"rows_kept":63,"cut":false,"hidden":false,"merged":[[5,7,5,12],[2,9,2,11],[5,1,5,4]]}
[]
[]
[null,null,null,null,null,null,null,null,null,"Ver hasta días atrás",null,null,7]
[]
[null,null,null,null,null,null,null,null,null,null,null,null,null,null,{"$f":"TODAY()-M3","v":"2022-08-31"},{"$f":"O5+1","v":"2022-09-01"},"2022-09-02","2022-09-03","2022-09-04","2022-09-05","2022-09-06","2022-09-07","2022-09-08","2022-09-09","2022-09-10","2022-09-11","2022-09-12","2022-09-13","2022-09-14","2022-09-15","2022-09-16","2022-09-17","2022-09-18","2022-09-19","2022-09-20","2022-09-21","2022-09-22","2022-09-23","2022-09-24","2022-09-25","2022-09-26","2022-09-27","2022-09-28","2022-09-29","2022-09-30","2022-10-01","2022-10-02","2022-10-03","2022-10-04","2022-10-05","2022-10-06","2022-10-07","2022-10-08","2022-10-09"]
[null,"CUMPLIMIENTO ACTIVIDADES",null,null,null,null,null,"CRONOGRAMA ACTIVIDADES",null,null,null,null,null,null,{"$f":"O5","v":"2022-08-31"},"2022-09-01","2022-09-02","2022-09-03","2022-09-04","2022-09-05","2022-09-06","2022-09-07","2022-09-08","2022-09-09",{"$f":"Y5","v":"2022-09-10"},"2022-09-11","2022-09-12","2022-09-13","2022-09-14","2022-09-15","2022-09-16","2022-09-17","2022-09-18","2022-09-19",{"$f":"AI5","v":"2022-09-20"},"2022-09-21","2022-09-22","2022-09-23","2022-09-24","2022-09-25","2022-09-26","2022-09-27","2022-09-28","2022-09-29",{"$f":"AS5","v":"2022-09-30"},"2022-10-01","2022-10-02","2022-10-03","2022-10-04","2022-10-05","2022-10-06","2022-10-07","2022-10-08","2022-10-09"]
[null," ",null,null,null,null,null,null,null,null,null,null,null,null,"2022-08-31","2022-09-01","2022-09-02","2022-09-03","2022-09-04","2022-09-05","2022-09-06","2022-09-07","2022-09-08","2022-09-09","2022-09-10","2022-09-11","2022-09-12","2022-09-13","2022-09-14","2022-09-15","2022-09-16","2022-09-17","2022-09-18","2022-09-19","2022-09-20","2022-09-21","2022-09-22","2022-09-23","2022-09-24","2022-09-25","2022-09-26","2022-09-27","2022-09-28","2022-09-29","2022-09-30","2022-10-01","2022-10-02","2022-10-03","2022-10-04","2022-10-05","2022-10-06","2022-10-07","2022-10-08","2022-10-09"]
[null,null,"En Espera","En Proceso","Terminado",null,null,"Proyecto","Tarea","Responsable","Estado"," Fecha Inicio "," Fecha Final "]
[null,"Persona 1",3,1,1,null,null,"Proyecto 1","Tarea 1","Persona 1","Terminado","2022-08-23","2022-09-07",null,{"$f":"AND($L9<=O$6,$M9>= O$6)","v":true},true,true,true,true,true,true,true,false,false,{"$f":"AND($L9<=Y$6,$M9>= Y$6)","v":false},false,false,false,false,false,false,false,false,false,{"$f":"AND($L9<=AI$6,$M9>= AI$6)","v":false},false,false,false,false,false,false,false,false,false,{"$f":"AND($L9<=AS$6,$M9>= AS$6)","v":false},false,false,false,false,false,false,false,false,false]
[null,"Persona 2",2,null,1,null,null,"Proyecto 2","Tarea 2","Persona 2","Terminado","2022-08-24","2022-09-08",null,true,true,true,true,true,true,true,true,true,false,false,false,false,false,false,false,false,false,false,false,false,false,false,false,false,false,false,false,false,false,false,false,false,false,false,false,false,false,false,false]
[null,"Persona 3",3,null,null,null,null,null,"Tarea 3","Persona 1","En Proceso","2022-08-25","2022-09-11",null,true,true,true,true,true,true,true,true,true,true,true,true,false,false,false,false,false,false,false,false,false,false,false,false,false,false,false,false,false,false,false,false,false,false,false,false,false,false,false,false]
[null,"Persona 4",null,null,1,null,null,null,"Tarea 4","Persona 2","En Espera","2022-09-08","2022-09-12",null,false,false,false,false,false,false,false,false,true,true,true,true,true,false,false,false,false,false,false,false,false,false,false,false,false,false,false,false,false,false,false,false,false,false,false,false,false,false,false,false]
[null,null,null,null,null,null,null,"Proyecto 3","Tarea 6","Persona 3","En Espera","2022-08-28","2022-09-14",null,true,true,true,true,true,true,true,true,true,true,true,true,true,true,true,false,false,false,false,false,false,false,false,false,false,false,false,false,false,false,false,false,false,false,false,false,false,false,false,false]
[null,null,null,null,null,null,null,null,"Tarea 7","Persona 3","En Espera","2022-09-11","2022-09-22",null,false,false,false,false,false,false,false,false,false,false,false,true,true,true,true,true,true,true,true,true,true,true,true,false,false,false,false,false,false,false,false,false,false,false,false,false,false,false,false,false]
[null,null,null,null,null,null,null,"Proyecto 4","Tarea 8","Persona 1","En Espera","2022-09-02","2022-09-17",null,false,false,true,true,true,true,true,true,true,true,true,true,true,true,true,true,true,true,false,false,false,false,false,false,false,false,false,false,false,false,false,false,false,false,false,false,false,false,false,false]
[null,null,null,null,null,null,null,null,"Tarea 5","Persona 3","En Espera","2022-08-27","2022-09-11",null,true,true,true,true,true,true,true,true,true,true,true,true,false,false,false,false,false,false,false,false,false,false,false,false,false,false,false,false,false,false,false,false,false,false,false,false,false,false,false,false]
[null,null,null,null,null,null,null,null,"Tarea 12","Persona 2","En Espera","2022-09-05","2022-09-09",null,false,false,false,false,false,true,true,true,true,true,false,false,false,false,false,false,false,false,false,false,false,false,false,false,false,false,false,false,false,false,false,false,false,false,false,false,false,false,false,false]
[null,null,null,null,null,null,null,"Proyecto 5","Tarea 9","Persona 1","En Espera","2022-09-05","2022-09-21",null,false,false,false,false,false,true,true,true,true,true,true,true,true,true,true,true,true,true,true,true,true,true,false,false,false,false,false,false,false,false,false,false,false,false,false,false,false,false,false,false]
[null,null,null,null,null,null,null,"Proyecto 6","Tarea 10","Persona 1","En Espera","2022-09-05","2022-09-09",null,{"$f":"AND($L19<=O$6,$M19>= O$6)","v":false},false,false,false,false,true,true,true,true,true,{"$f":"AND($L19<=Y$6,$M19>= Y$6)","v":false},false,false,false,false,false,false,false,false,false,{"$f":"AND($L19<=AI$6,$M19>= AI$6)","v":false},false,false,false,false,false,false,false,false,false,{"$f":"AND($L19<=AS$6,$M19>= AS$6)","v":false},false,false,false,false,false,false,false,false,false]
[null,null,null,null,null,null,null,null,"Tarea 11","Persona 4","Terminado","2022-09-05","2022-09-09",null,false,false,false,false,false,true,true,true,true,true,false,false,false,false,false,false,false,false,false,false,false,false,false,false,false,false,false,false,false,false,false,false,false,false,false,false,false,false,false,false]
[null,null,null,null,null,null,null,null,null,null,null,null,null,null,false,false,false,false,false,false,false,false,false,false,false,false,false,false,false,false,false,false,false,false,false,false,false,false,false,false,false,false,false,false,false,false,false,false,false,false,false,false,false,false]
[null,null,null,null,null,null,null,null,null,null,null,null,null,null,false,false,false,false,false,false,false,false,false,false,false,false,false,false,false,false,false,false,false,false,false,false,false,false,false,false,false,false,false,false,false,false,false,false,false,false,false,false,false,false]
[null,null,null,null,null,null,null,null,null,null,null,null,null,null,false,false,false,false,false,false,false,false,false,false,false,false,false,false,false,false,false,false,false,false,false,false,false,false,false,false,false,false,false,false,false,false,false,false,false,false,false,false,false,false]
[null,null,null,null,null,null,null,null,null,null,null,null,null,null,false,false,false,false,false,false,false,false,false,false,false,false,false,false,false,false,false,false,false,false,false,false,false,false,false,false,false,false,false,false,false,false,false,false,false,false,false,false,false,false]
[null,null,null,null,null,null,null,null,null,null,null,null,null,null,false,false,false,false,false,false,false,false,false,false,false,false,false,false,false,false,false,false,false,false,false,false,false,false,false,false,false,false,false,false,false,false,false,false,false,false,false,false,false,false]
[null,null,null,null,null,null,null,null,null,null,null,null,null,null,false,false,false,false,false,false,false,false,false,false,false,false,false,false,false,false,false,false,false,false,false,false,false,false,false,false,false,false,false,false,false,false,false,false,false,false,false,false,false,false]
[null,null,null,null,null,null,null,null,null,null,null,null,null,null,false,false,false,false,false,false,false,false,false,false,false,false,false,false,false,false,false,false,false,false,false,false,false,false,false,false,false,false,false,false,false,false,false,false,false,false,false,false,false,false]
[null,null,null,null,null,null,null,null,null,null,null,null,null,null,{"$f":"AND($L28<=O$6,$M28>= O$6)","v":false},false,false,false,false,false,false,false,false,false,{"$f":"AND($L28<=Y$6,$M28>= Y$6)","v":false},false,false,false,false,false,false,false,false,false,{"$f":"AND($L28<=AI$6,$M28>= AI$6)","v":false},false,false,false,false,false,false,false,false,false,{"$f":"AND($L28<=AS$6,$M28>= AS$6)","v":false},false,false,false,false,false,false,false,false,false]
[null,null,null,null,null,null,null,null,null,null,null,null,null,null,{"$f":"AND($L29<=O$6,$M29>= O$6)","v":false},false,false,false,false,false,false,false,false,false,{"$f":"AND($L29<=Y$6,$M29>= Y$6)","v":false},false,false,false,false,false,false,false,false,false,{"$f":"AND($L29<=AI$6,$M29>= AI$6)","v":false},false,false,false,false,false,false,false,false,false,{"$f":"AND($L29<=AS$6,$M29>= AS$6)","v":false},false,false,false,false,false,false,false,false,false]
[null,null,null,null,null,null,null,null,null,null,null,null,null,null,false,false,false,false,false,false,false,false,false,false,false,false,false,false,false,false,false,false,false,false,false,false,false,false,false,false,false,false,false,false,false,false,false,false,false,false,false,false,false,false]
[null,null,null,null,null,null,null,null,null,null,null,null,null,null,false,false,false,false,false,false,false,false,false,false,false,false,false,false,false,false,false,false,false,false,false,false,false,false,false,false,false,false,false,false,false,false,false,false,false,false,false,false,false,false]
[null,null,null,null,null,null,null,null,null,null,null,null,null,null,false,false,false,false,false,false,false,false,false,false,false,false,false,false,false,false,false,false,false,false,false,false,false,false,false,false,false,false,false,false,false,false,false,false,false,false,false,false,false,false]
[null,null,null,null,null,null,null,null,null,null,null,null,null,null,false,false,false,false,false,false,false,false,false,false,false,false,false,false,false,false,false,false,false,false,false,false,false,false,false,false,false,false,false,false,false,false,false,false,false,false,false,false,false,false]
[null,null,null,null,null,null,null,null,null,null,null,null,null,null,false,false,false,false,false,false,false,false,false,false,false,false,false,false,false,false,false,false,false,false,false,false,false,false,false,false,false,false,false,false,false,false,false,false,false,false,false,false,false,false]
[null,null,null,null,null,null,null,null,null,null,null,null,null,null,false,false,false,false,false,false,false,false,false,false,false,false,false,false,false,false,false,false,false,false,false,false,false,false,false,false,false,false,false,false,false,false,false,false,false,false,false,false,false,false]
[null,null,null,null,null,null,null,null,null,null,null,null,null,null,false,false,false,false,false,false,false,false,false,false,false,false,false,false,false,false,false,false,false,false,false,false,false,false,false,false,false,false,false,false,false,false,false,false,false,false,false,false,false,false]
[null,null,null,null,null,null,null,null,null,null,null,null,null,null,false,false,false,false,false,false,false,false,false,false,false,false,false,false,false,false,false,false,false,false,false,false,false,false,false,false,false,false,false,false,false,false,false,false,false,false,false,false,false,false]
[null,null,null,null,null,null,null,null,null,null,null,null,null,null,false,false,false,false,false,false,false,false,false,false,false,false,false,false,false,false,false,false,false,false,false,false,false,false,false,false,false,false,false,false,false,false,false,false,false,false,false,false,false,false]
[null,null,null,null,null,null,null,null,null,null,null,null,null,null,{"$f":"AND($L39<=O$6,$M39>= O$6)","v":false},false,false,false,false,false,false,false,false,false,{"$f":"AND($L39<=Y$6,$M39>= Y$6)","v":false},false,false,false,false,false,false,false,false,false,{"$f":"AND($L39<=AI$6,$M39>= AI$6)","v":false},false,false,false,false,false,false,false,false,false,{"$f":"AND($L39<=AS$6,$M39>= AS$6)","v":false},false,false,false,false,false,false,false,false,false]
[null,{"$f":"IF(Datos!G32=\"\",\"\",Datos!G32)","v":""},null,null,null,null,null,null,null,null,null,null,null,null,false,false,false,false,false,false,false,false,false,false,false,false,false,false,false,false,false,false,false,false,false,false,false,false,false,false,false,false,false,false,false,false,false,false,false,false,false,false,false,false]
[null,{"$f":"IF(Datos!G33=\"\",\"\",Datos!G33)","v":""},null,null,null,null,null,null,null,null,null,null,null,null,false,false,false,false,false,false,false,false,false,false,false,false,false,false,false,false,false,false,false,false,false,false,false,false,false,false,false,false,false,false,false,false,false,false,false,false,false,false,false,false]
[null,{"$f":"IF(Datos!G34=\"\",\"\",Datos!G34)","v":""},null,null,null,null,null,null,null,null,null,null,null,null,false,false,false,false,false,false,false,false,false,false,false,false,false,false,false,false,false,false,false,false,false,false,false,false,false,false,false,false,false,false,false,false,false,false,false,false,false,false,false,false]
[null,{"$f":"IF(Datos!G35=\"\",\"\",Datos!G35)","v":""},null,null,null,null,null,null,null,null,null,null,null,null,false,false,false,false,false,false,false,false,false,false,false,false,false,false,false,false,false,false,false,false,false,false,false,false,false,false,false,false,false,false,false,false,false,false,false,false,false,false,false,false]
[null,{"$f":"IF(Datos!G36=\"\",\"\",Datos!G36)","v":""},null,null,null,null,null,null,null,null,null,null,null,null,false,false,false,false,false,false,false,false,false,false,false,false,false,false,false,false,false,false,false,false,false,false,false,false,false,false,false,false,false,false,false,false,false,false,false,false,false,false,false,false]
[null,{"$f":"IF(Datos!G37=\"\",\"\",Datos!G37)","v":""},null,null,null,null,null,null,null,null,null,null,null,null,false,false,false,false,false,false,false,false,false,false,false,false,false,false,false,false,false,false,false,false,false,false,false,false,false,false,false,false,false,false,false,false,false,false,false,false,false,false,false,false]
[null,{"$f":"IF(Datos!G38=\"\",\"\",Datos!G38)","v":""},null,null,null,null,null,null,null,null,null,null,null,null,false,false,false,false,false,false,false,false,false,false,false,false,false,false,false,false,false,false,false,false,false,false,false,false,false,false,false,false,false,false,false,false,false,false,false,false,false,false,false,false]
[null,{"$f":"IF(Datos!G39=\"\",\"\",Datos!G39)","v":""},null,null,null,null,null,null,null,null,null,null,null,null,false,false,false,false,false,false,false,false,false,false,false,false,false,false,false,false,false,false,false,false,false,false,false,false,false,false,false,false,false,false,false,false,false,false,false,false,false,false,false,false]
[null,{"$f":"IF(Datos!G40=\"\",\"\",Datos!G40)","v":""},null,null,null,null,null,null,null,null,null,null,null,null,false,false,false,false,false,false,false,false,false,false,false,false,false,false,false,false,false,false,false,false,false,false,false,false,false,false,false,false,false,false,false,false,false,false,false,false,false,false,false,false]
[null,{"$f":"IF(Datos!G41=\"\",\"\",Datos!G41)","v":""},null,null,null,null,null,null,null,null,null,null,null,null,{"$f":"AND($L49<=O$6,$M49>= O$6)","v":false},false,false,false,false,false,false,false,false,false,{"$f":"AND($L49<=Y$6,$M49>= Y$6)","v":false},false,false,false,false,false,false,false,false,false,{"$f":"AND($L49<=AI$6,$M49>= AI$6)","v":false},false,false,false,false,false,false,false,false,false,{"$f":"AND($L49<=AS$6,$M49>= AS$6)","v":false},false,false,false,false,false,false,false,false,false]
[null,{"$f":"IF(Datos!G42=\"\",\"\",Datos!G42)","v":""},null,null,null,null,null,null,null,null,null,null,null,null,false,false,false,false,false,false,false,false,false,false,false,false,false,false,false,false,false,false,false,false,false,false,false,false,false,false,false,false,false,false,false,false,false,false,false,false,false,false,false,false]
[null,{"$f":"IF(Datos!G43=\"\",\"\",Datos!G43)","v":""},null,null,null,null,null,null,null,null,null,null,null,null,false,false,false,false,false,false,false,false,false,false,false,false,false,false,false,false,false,false,false,false,false,false,false,false,false,false,false,false,false,false,false,false,false,false,false,false,false,false,false,false]
[null,{"$f":"IF(Datos!G44=\"\",\"\",Datos!G44)","v":""},null,null,null,null,null,null,null,null,null,null,null,null,false,false,false,false,false,false,false,false,false,false,false,false,false,false,false,false,false,false,false,false,false,false,false,false,false,false,false,false,false,false,false,false,false,false,false,false,false,false,false,false]
[null,{"$f":"IF(Datos!G45=\"\",\"\",Datos!G45)","v":""},null,null,null,null,null,null,null,null,null,null,null,null,false,false,false,false,false,false,false,false,false,false,false,false,false,false,false,false,false,false,false,false,false,false,false,false,false,false,false,false,false,false,false,false,false,false,false,false,false,false,false,false]
[null,{"$f":"IF(Datos!G46=\"\",\"\",Datos!G46)","v":""},null,null,null,null,null,null,null,null,null,null,null,null,false,false,false,false,false,false,false,false,false,false,false,false,false,false,false,false,false,false,false,false,false,false,false,false,false,false,false,false,false,false,false,false,false,false,false,false,false,false,false,false]
[null,{"$f":"IF(Datos!G47=\"\",\"\",Datos!G47)","v":""},null,null,null,null,null,null,null,null,null,null,null,null,false,false,false,false,false,false,false,false,false,false,false,false,false,false,false,false,false,false,false,false,false,false,false,false,false,false,false,false,false,false,false,false,false,false,false,false,false,false,false,false]
[null,{"$f":"IF(Datos!G48=\"\",\"\",Datos!G48)","v":""},null,null,null,null,null,null,null,null,null,null,null,null,false,false,false,false,false,false,false,false,false,false,false,false,false,false,false,false,false,false,false,false,false,false,false,false,false,false,false,false,false,false,false,false,false,false,false,false,false,false,false,false]
[null,{"$f":"IF(Datos!G49=\"\",\"\",Datos!G49)","v":""},null,null,null,null,null,null,null,null,null,null,null,null,false,false,false,false,false,false,false,false,false,false,false,false,false,false,false,false,false,false,false,false,false,false,false,false,false,false,false,false,false,false,false,false,false,false,false,false,false,false,false,false]
[null,{"$f":"IF(Datos!G50=\"\",\"\",Datos!G50)","v":""},null,null,null,null,null,null,null,null,null,null,null,null,false,false,false,false,false,false,false,false,false,false,false,false,false,false,false,false,false,false,false,false,false,false,false,false,false,false,false,false,false,false,false,false,false,false,false,false,false,false,false,false]
[null,{"$f":"IF(Datos!G51=\"\",\"\",Datos!G51)","v":""},null,null,null,null,null,null,null,null,null,null,null,null,false,false,false,false,false,false,false,false,false,false,false,false,false,false,false,false,false,false,false,false,false,false,false,false,false,false,false,false,false,false,false,false,false,false,false,false,false,false,false,false]
[null,{"$f":"IF(Datos!G52=\"\",\"\",Datos!G52)","v":""},null,null,null,null,null,null,null,null,null,null,null,null,false,false,false,false,false,false,false,false,false,false,false,false,false,false,false,false,false,false,false,false,false,false,false,false,false,false,false,false,false,false,false,false,false,false,false,false,false,false,false,false]
[null,{"$f":"IF(Datos!G53=\"\",\"\",Datos!G53)","v":""},null,null,null,null,null,null,null,null,null,null,null,null,false,false,false,false,false,false,false,false,false,false,false,false,false,false,false,false,false,false,false,false,false,false,false,false,false,false,false,false,false,false,false,false,false,false,false,false,false,false,false,false]
[null,{"$f":"IF(Datos!G54=\"\",\"\",Datos!G54)","v":""},null,null,null,null,null,null,null,null,null,null,null,null,false,false,false,false,false,false,false,false,false,false,false,false,false,false,false,false,false,false,false,false,false,false,false,false,false,false,false,false,false,false,false,false,false,false,false,false,false,false,false,false]
[null,{"$f":"IF(Datos!G55=\"\",\"\",Datos!G55)","v":""},null,null,null,null,null,null,null,null,null,null,null,null,false,false,false,false,false,false,false,false,false,false,false,false,false,false,false,false,false,false,false,false,false,false,false,false,false,false,false,false,false,false,false,false,false,false,false,false,false,false,false,false]